[Event "Live Chess"]
[Site "Chess.com"]
[Date "2024.06.02"]
[Round "-"]
[White "OliWally08"]
[Black "DylanMeyer1"]
[Result "0-1"]
[WhiteElo "1285"]
[BlackElo "1697"]
[TimeControl "300"]
[EndTime "8:49:34 PDT"]
[Termination "DylanMeyer1 won on time"]

1. e4 {[%clk 0:04:59.3]} 1... d5 {[%clk 0:04:58.5]} 2. e5 {[%clk 0:04:57.3]}
2... c5 {[%clk 0:04:56.9]} 3. d4 {[%clk 0:04:56]} 3... cxd4 {[%clk 0:04:55.9]}
4. Qxd4 {[%clk 0:04:54.1]} 4... Nc6 {[%clk 0:04:55.8]} 5. Qd1 {[%clk 0:04:52.3]}
5... a6 {[%clk 0:04:55.3]} 6. Nc3 {[%clk 0:04:50.5]} 6... g6 {[%clk 0:04:53.9]}
7. Nf3 {[%clk 0:04:44.3]} 7... e6 {[%clk 0:04:53]} 8. Bf4 {[%clk 0:04:42.9]}
8... Bg7 {[%clk 0:04:51.9]} 9. Qd2 {[%clk 0:04:37.6]} 9... Nge7 {[%clk
0:04:51.4]} 10. Bd3 {[%clk 0:04:29.7]} 10... O-O {[%clk 0:04:46.2]} 11. h4
{[%clk 0:04:18.3]} 11... h5 {[%clk 0:04:44.8]} 12. O-O-O {[%clk 0:03:37.7]}
12... b5 {[%clk 0:04:30.6]} 13. Ne2 {[%clk 0:03:22.5]} 13... Qc7 {[%clk
0:04:20.5]} 14. Bh6 {[%clk 0:03:10.5]} 14... Nxe5 {[%clk 0:04:17.8]} 15. Bxg7
{[%clk 0:02:51.6]} 15... Nxd3+ {[%clk 0:04:02.9]} 16. Qxd3 {[%clk 0:02:36.3]}
16... Kxg7 {[%clk 0:03:48.3]} 17. Qd4+ {[%clk 0:01:50.6]} 17... Kg8 {[%clk
0:03:40.9]} 18. g4 {[%clk 0:01:47.4]} 18... Nc6 {[%clk 0:03:36]} 19. Qc3 {[%clk
0:01:36.9]} 19... b4 {[%clk 0:03:33.9]} 20. Qc5 {[%clk 0:01:25.7]} 20... hxg4
{[%clk 0:03:08.5]} 21. Nfd4 {[%clk 0:01:19.1]} 21... Bb7 {[%clk 0:03:05.8]} 22.
h5 {[%clk 0:01:15.1]} 22... g5 {[%clk 0:02:45.3]} 23. h6 {[%clk 0:01:01.2]}
23... Kh7 {[%clk 0:02:39]} 24. Nxc6 {[%clk 0:00:57]} 24... Qxc6 {[%clk
0:02:37.2]} 25. Qd4 {[%clk 0:00:55]} 25... f6 {[%clk 0:02:28.3]} 26. Rh5 {[%clk
0:00:49.6]} 26... Rac8 {[%clk 0:02:22.9]} 27. Rd2 {[%clk 0:00:41.7]} 27... Qc4
{[%clk 0:01:39.5]} 28. Qe3 {[%clk 0:00:21.6]} 28... Qe4 {[%clk 0:01:30.6]} 29.
Qxe4+ {[%clk 0:00:15.2]} 29... dxe4 {[%clk 0:01:29.5]} 30. Rd7+ {[%clk
0:00:14.7]} 30... Kg6 {[%clk 0:01:24.7]} 31. Rxb7 {[%clk 0:00:11.4]} 31... Kxh5
{[%clk 0:01:23.8]} 32. h7 {[%clk 0:00:10.9]} 32... Rh8 {[%clk 0:01:22.9]} 33.
Ng3+ {[%clk 0:00:09.9]} 33... Kg6 {[%clk 0:01:21.4]} 34. Rd7 {[%clk 0:00:06.2]}
34... Rxh7 {[%clk 0:01:19.8]} 35. Rxh7 {[%clk 0:00:03.1]} 35... Kxh7 {[%clk
0:01:19.7]} 36. Nxe4 {[%clk 0:00:02.5]} 36... Kg6 {[%clk 0:01:17.8]} 37. Nd6
{[%clk 0:00:01]} 37... Rc6 {[%clk 0:01:15.7]} 0-1

[Event "Live Chess"]
[Site "Chess.com"]
[Date "2024.06.02"]
[Round "-"]
[White "booktrunk"]
[Black "Cruiseylee78"]
[Result "1-0"]
[WhiteElo "1484"]
[BlackElo "1670"]
[TimeControl "300"]
[EndTime "8:49:34 PDT"]
[Termination "booktrunk won by resignation"]

1. d4 {[%clk 0:04:51.1]} 1... d6 {[%clk 0:04:59.3]} 2. Nc3 {[%clk 0:04:48.8]}
2... Nd7 {[%clk 0:04:58.9]} 3. e4 {[%clk 0:04:40.7]} 3... e5 {[%clk 0:04:55.7]}
4. dxe5 {[%clk 0:04:39.2]} 4... dxe5 {[%clk 0:04:55.6]} 5. Nf3 {[%clk
0:04:34.9]} 5... c6 {[%clk 0:04:54.4]} 6. Bc4 {[%clk 0:04:33.2]} 6... h6 {[%clk
0:04:51.8]} 7. O-O {[%clk 0:04:31.7]} 7... Qc7 {[%clk 0:04:50.8]} 8. a3 {[%clk
0:04:26.8]} 8... Be7 {[%clk 0:04:49.6]} 9. Qe2 {[%clk 0:04:23.1]} 9... Ngf6
{[%clk 0:04:48.5]} 10. b4 {[%clk 0:04:21.2]} 10... Nf8 {[%clk 0:04:45.3]} 11.
Be3 {[%clk 0:04:16.4]} 11... g5 {[%clk 0:04:43.5]} 12. h3 {[%clk 0:04:13.9]}
12... Ng6 {[%clk 0:04:42.3]} 13. Nh2 {[%clk 0:04:11.8]} 13... Nf4 {[%clk
0:04:41.4]} 14. Bxf4 {[%clk 0:04:08.2]} 14... gxf4 {[%clk 0:04:41.3]} 15. Rad1
{[%clk 0:04:01.2]} 15... Rg8 {[%clk 0:04:40.2]} 16. g4 {[%clk 0:03:46]} 16...
fxg3 {[%clk 0:04:37.3]} 17. fxg3 {[%clk 0:03:45]} 17... Rxg3+ {[%clk 0:04:35.9]}
18. Kh1 {[%clk 0:03:43.8]} 18... Rxc3 {[%clk 0:04:34.4]} 19. Qg2 {[%clk
0:03:39]} 19... Rxc4 {[%clk 0:04:28]} 20. Qg7 {[%clk 0:03:36.2]} 20... Bd7
{[%clk 0:04:13]} 21. Rxf6 {[%clk 0:03:32.6]} 21... Bxf6 {[%clk 0:04:10.9]} 22.
Qxf6 {[%clk 0:03:32.5]} 22... Qd8 {[%clk 0:03:55.6]} 23. Qxe5+ {[%clk
0:03:28.4]} 23... Be6 {[%clk 0:03:54.4]} 24. Rxd8+ {[%clk 0:03:25.6]} 24... Rxd8
{[%clk 0:03:53.1]} 25. Qh8+ {[%clk 0:03:22.6]} 25... Ke7 {[%clk 0:03:51.4]} 26.
Qxh6 {[%clk 0:03:20.3]} 26... Rxc2 {[%clk 0:03:49]} 27. Qh4+ {[%clk 0:03:18.7]}
27... Kf8 {[%clk 0:03:40.5]} 28. Qxd8+ {[%clk 0:03:14.6]} 28... Kg7 {[%clk
0:03:39.7]} 29. Ng4 {[%clk 0:03:10.5]} 29... Rc3 {[%clk 0:03:36.7]} 30. Qf6+
{[%clk 0:03:08.2]} 30... Kf8 {[%clk 0:03:33.9]} 31. Qxc3 {[%clk 0:03:06.5]} 1-0

[Event "Live Chess"]
[Site "Chess.com"]
[Date "2024.06.02"]
[Round "-"]
[White "BishopofWells"]
[Black "FlyingChessKestrel13"]
[Result "1-0"]
[WhiteElo "1567"]
[BlackElo "2064"]
[TimeControl "300"]
[EndTime "8:49:51 PDT"]
[Termination "BishopofWells won by resignation"]

1. d4 {[%clk 0:04:57.2]} 1... d5 {[%clk 0:04:58.4]} 2. c4 {[%clk 0:04:56.3]}
2... dxc4 {[%clk 0:04:57.4]} 3. Nc3 {[%clk 0:04:55.5]} 3... a6 {[%clk
0:04:53.2]} 4. e4 {[%clk 0:04:54.3]} 4... e5 {[%clk 0:04:50.8]} 5. d5 {[%clk
0:04:51.6]} 5... Nf6 {[%clk 0:04:49.4]} 6. Bxc4 {[%clk 0:04:48.8]} 6... b5
{[%clk 0:04:48.4]} 7. Bd3 {[%clk 0:04:46.5]} 7... Bc5 {[%clk 0:04:44.7]} 8. h3
{[%clk 0:04:41.2]} 8... O-O {[%clk 0:04:43.3]} 9. Nf3 {[%clk 0:04:39.5]} 9...
Nbd7 {[%clk 0:04:42.1]} 10. Bg5 {[%clk 0:04:33.2]} 10... h6 {[%clk 0:04:39.2]}
11. Bh4 {[%clk 0:04:32.2]} 11... Qe7 {[%clk 0:04:37.3]} 12. O-O {[%clk
0:04:25.6]} 12... Qd6 {[%clk 0:04:34.5]} 13. a3 {[%clk 0:04:22.3]} 13... Bb7
{[%clk 0:04:30.7]} 14. Bg3 {[%clk 0:04:19.3]} 14... c6 {[%clk 0:04:25.3]} 15.
dxc6 {[%clk 0:04:06.2]} 15... Bxc6 {[%clk 0:04:22.4]} 16. Qc2 {[%clk 0:04:04.8]}
16... Rac8 {[%clk 0:04:19.4]} 17. Rad1 {[%clk 0:04:02.1]} 17... Qe6 {[%clk
0:04:12.8]} 18. b4 {[%clk 0:03:52.7]} 18... Bb6 {[%clk 0:04:10]} 19. Qb2 {[%clk
0:03:46.6]} 19... Bd4 {[%clk 0:04:04.5]} 20. Nxd4 {[%clk 0:03:43.9]} 20... exd4
{[%clk 0:04:03.4]} 21. Ne2 {[%clk 0:03:39.2]} 21... Bxe4 {[%clk 0:03:47.9]} 22.
Nxd4 {[%clk 0:03:32.8]} 22... Qb6 {[%clk 0:03:39.9]} 23. Bxe4 {[%clk 0:03:21.2]}
23... Nxe4 {[%clk 0:03:38.7]} 24. Nf5 {[%clk 0:03:07.2]} 24... Ndf6 {[%clk
0:03:28.6]} 25. Ne7+ {[%clk 0:03:03.7]} 25... Kh8 {[%clk 0:03:26.3]} 26. Nxc8
{[%clk 0:03:02.4]} 26... Nxg3 {[%clk 0:03:24.1]} 27. Nxb6 {[%clk 0:02:58.6]}
27... Nxf1 {[%clk 0:03:22.2]} 28. Kxf1 {[%clk 0:02:56]} 28... Rb8 {[%clk
0:03:20.4]} 29. Nd5 {[%clk 0:02:53.5]} 1-0

[Event "Live Chess"]
[Site "Chess.com"]
[Date "2024.06.02"]
[Round "-"]
[White "elephantgerrald"]
[Black "kylet1990"]
[Result "1-0"]
[WhiteElo "900"]
[BlackElo "774"]
[TimeControl "300"]
[EndTime "8:49:53 PDT"]
[Termination "elephantgerrald won by checkmate"]

1. e4 {[%clk 0:04:58.9]} 1... c6 {[%clk 0:04:59.1]} 2. d4 {[%clk 0:04:57.6]}
2... d5 {[%clk 0:04:58.2]} 3. e5 {[%clk 0:04:55]} 3... Bf5 {[%clk 0:04:55.8]} 4.
Nf3 {[%clk 0:04:53.4]} 4... e6 {[%clk 0:04:54.9]} 5. Be2 {[%clk 0:04:36.9]} 5...
c5 {[%clk 0:04:53.4]} 6. dxc5 {[%clk 0:04:35.9]} 6... Bxc5 {[%clk 0:04:52]} 7.
O-O {[%clk 0:04:35.1]} 7... Nc6 {[%clk 0:04:50.6]} 8. Nc3 {[%clk 0:04:34]} 8...
Nge7 {[%clk 0:04:47.6]} 9. Bb5 {[%clk 0:04:32.6]} 9... O-O {[%clk 0:04:45.6]}
10. Bxc6 {[%clk 0:04:24.3]} 10... Nxc6 {[%clk 0:04:43.9]} 11. Re1 {[%clk
0:04:18.8]} 11... Qb6 {[%clk 0:04:38.7]} 12. b3 {[%clk 0:03:58.9]} 12... Bxf2+
{[%clk 0:04:36.5]} 13. Kf1 {[%clk 0:03:57.5]} 13... Bxe1 {[%clk 0:04:35]} 14.
Qxe1 {[%clk 0:03:57]} 14... f6 {[%clk 0:04:29.1]} 15. exf6 {[%clk 0:03:39.8]}
15... Rxf6 {[%clk 0:04:26.7]} 16. Bb2 {[%clk 0:03:34.8]} 16... Rff8 {[%clk
0:04:06.1]} 17. Qg3 {[%clk 0:03:28.3]} 17... g6 {[%clk 0:03:54.2]} 18. Ne5
{[%clk 0:03:15.7]} 18... Nxe5 {[%clk 0:03:50.4]} 19. Qxe5 {[%clk 0:03:13.1]}
19... Qa6+ {[%clk 0:03:33.2]} 20. Kg1 {[%clk 0:03:09.6]} 20... Bxc2 {[%clk
0:03:25.2]} 21. Nb5 {[%clk 0:03:02.8]} 21... Qb6+ {[%clk 0:03:18.7]} 22. Kh1
{[%clk 0:02:55.4]} 22... Rf7 {[%clk 0:03:10.7]} 23. Nd6 {[%clk 0:02:50.8]} 23...
Raf8 {[%clk 0:02:52.6]} 24. Nxf7 {[%clk 0:02:41.3]} 24... Rxf7 {[%clk
0:02:51.2]} 25. Qh8# {[%clk 0:02:36.4]} 1-0

[Event "Live Chess"]
[Site "Chess.com"]
[Date "2024.06.02"]
[Round "-"]
[White "mychess51"]
[Black "FREDERICKtheMATE"]
[Result "0-1"]
[WhiteElo "1753"]
[BlackElo "2663"]
[TimeControl "300"]
[EndTime "8:49:56 PDT"]
[Termination "FREDERICKtheMATE won on time"]

1. d4 {[%clk 0:04:56.8]} 1... d5 {[%clk 0:04:58.6]} 2. Nf3 {[%clk 0:04:55.5]}
2... Nf6 {[%clk 0:04:57.5]} 3. g3 {[%clk 0:04:54.7]} 3... Bf5 {[%clk 0:04:56.6]}
4. Bg2 {[%clk 0:04:53.9]} 4... e6 {[%clk 0:04:56.1]} 5. O-O {[%clk 0:04:53.1]}
5... h6 {[%clk 0:04:55.4]} 6. c4 {[%clk 0:04:52.3]} 6... c6 {[%clk 0:04:54.6]}
7. Nc3 {[%clk 0:04:51.3]} 7... Nbd7 {[%clk 0:04:53.3]} 8. Qb3 {[%clk 0:04:43.9]}
8... Qb6 {[%clk 0:04:52.1]} 9. c5 {[%clk 0:04:39.7]} 9... Qxb3 {[%clk
0:04:50.3]} 10. axb3 {[%clk 0:04:38.2]} 10... Be7 {[%clk 0:04:49.1]} 11. h3
{[%clk 0:04:33.8]} 11... O-O {[%clk 0:04:47.4]} 12. Kh2 {[%clk 0:04:32.9]} 12...
Ne4 {[%clk 0:04:46]} 13. Nd2 {[%clk 0:04:18.6]} 13... Nxd2 {[%clk 0:04:41.3]}
14. Bxd2 {[%clk 0:04:17]} 14... e5 {[%clk 0:04:39.8]} 15. e3 {[%clk 0:04:05.8]}
15... Bf6 {[%clk 0:04:33.9]} 16. dxe5 {[%clk 0:03:53.2]} 16... Bxe5 {[%clk
0:04:23.5]} 17. b4 {[%clk 0:03:50.4]} 17... a5 {[%clk 0:04:20.8]} 18. bxa5
{[%clk 0:03:12.2]} 18... Nxc5 {[%clk 0:04:18.6]} 19. Ra3 {[%clk 0:02:26.9]}
19... Bd6 {[%clk 0:04:14.1]} 20. b4 {[%clk 0:02:23.1]} 20... Nd3 {[%clk
0:04:08.4]} 21. Rb3 {[%clk 0:02:17]} 21... Bxb4 {[%clk 0:03:47.5]} 22. e4 {[%clk
0:01:57.4]} 22... Bxc3 {[%clk 0:03:39.2]} 23. Rxc3 {[%clk 0:01:44.7]} 23... Bxe4
{[%clk 0:03:36.3]} 24. Bxe4 {[%clk 0:01:31.4]} 24... dxe4 {[%clk 0:03:33]} 25.
f3 {[%clk 0:01:27.5]} 25... Rfd8 {[%clk 0:03:21]} 26. fxe4 {[%clk 0:01:10.4]}
26... Ne5 {[%clk 0:03:18.5]} 27. Be3 {[%clk 0:00:59.5]} 27... Rxa5 {[%clk
0:03:02.3]} 28. Rf2 {[%clk 0:00:54.6]} 28... Rd1 {[%clk 0:02:51]} 29. Bf4 {[%clk
0:00:44.4]} 29... Nd3 {[%clk 0:02:43.1]} 30. Rd2 {[%clk 0:00:29.2]} 30... Rxd2+
{[%clk 0:02:40]} 31. Bxd2 {[%clk 0:00:27.4]} 31... Ne5 {[%clk 0:02:39.5]} 32.
Rc2 {[%clk 0:00:14.4]} 32... Nf3+ {[%clk 0:02:37.5]} 33. Kg2 {[%clk 0:00:11.8]}
33... Nxd2 {[%clk 0:02:37.4]} 34. Rxd2 {[%clk 0:00:10.8]} 34... g6 {[%clk
0:02:37.1]} 35. Kf3 {[%clk 0:00:06.7]} 35... Kg7 {[%clk 0:02:35.4]} 36. h4
{[%clk 0:00:05.7]} 36... Ra3+ {[%clk 0:02:34.4]} 37. Kf4 {[%clk 0:00:03.1]}
37... Kf6 {[%clk 0:02:31.6]} 0-1

[Event "Live Chess"]
[Site "Chess.com"]
[Date "2024.06.02"]
[Round "-"]
[White "Colm_Buckley"]
[Black "Zhevzh1k7"]
[Result "1-0"]
[WhiteElo "1891"]
[BlackElo "1122"]
[TimeControl "300"]
[EndTime "8:50:20 PDT"]
[Termination "Colm_Buckley won by checkmate"]

1. d4 {[%clk 0:04:58]} 1... Nf6 {[%clk 0:04:56.5]} 2. c4 {[%clk 0:04:57.4]} 2...
e6 {[%clk 0:04:54]} 3. Nc3 {[%clk 0:04:56.8]} 3... d5 {[%clk 0:04:51.5]} 4. Nf3
{[%clk 0:04:55.1]} 4... c6 {[%clk 0:04:51.1]} 5. cxd5 {[%clk 0:04:52.5]} 5...
cxd5 {[%clk 0:04:49.2]} 6. Bf4 {[%clk 0:04:50.1]} 6... Nc6 {[%clk 0:04:46.5]} 7.
e3 {[%clk 0:04:48.8]} 7... Bd6 {[%clk 0:04:43.4]} 8. Bg5 {[%clk 0:04:46.8]} 8...
h6 {[%clk 0:04:38.8]} 9. Bh4 {[%clk 0:04:45.2]} 9... O-O {[%clk 0:04:34.6]} 10.
Bd3 {[%clk 0:04:43.3]} 10... Nb4 {[%clk 0:04:29]} 11. Bb1 {[%clk 0:04:40.2]}
11... Bd7 {[%clk 0:04:26.2]} 12. a3 {[%clk 0:04:37]} 12... Nc6 {[%clk
0:04:21.4]} 13. O-O {[%clk 0:04:35.5]} 13... Be7 {[%clk 0:04:12.1]} 14. Qd3
{[%clk 0:04:29.7]} 14... Qc7 {[%clk 0:04:08.4]} 15. Bxf6 {[%clk 0:04:27.8]}
15... Bxf6 {[%clk 0:04:06]} 16. Qh7# {[%clk 0:04:26.5]} 1-0

[Event "Live Chess"]
[Site "Chess.com"]
[Date "2024.06.02"]
[Round "-"]
[White "Lexram8"]
[Black "OnlyTheHurf"]
[Result "0-1"]
[WhiteElo "1570"]
[BlackElo "1146"]
[TimeControl "300"]
[EndTime "8:50:24 PDT"]
[Termination "OnlyTheHurf won by checkmate"]

1. d4 {[%clk 0:04:58.9]} 1... Nf6 {[%clk 0:04:57.8]} 2. e3 {[%clk 0:04:58]} 2...
d6 {[%clk 0:04:56.9]} 3. Bd3 {[%clk 0:04:57]} 3... g6 {[%clk 0:04:55.4]} 4. f4
{[%clk 0:04:56.4]} 4... Bg7 {[%clk 0:04:54.7]} 5. Nf3 {[%clk 0:04:55.8]} 5...
O-O {[%clk 0:04:53.6]} 6. Nbd2 {[%clk 0:04:55.4]} 6... c6 {[%clk 0:04:52.4]} 7.
O-O {[%clk 0:04:55]} 7... Bg4 {[%clk 0:04:49.5]} 8. c3 {[%clk 0:04:53.8]} 8...
Re8 {[%clk 0:04:46.7]} 9. e4 {[%clk 0:04:52.8]} 9... Nbd7 {[%clk 0:04:45.7]} 10.
Qe1 {[%clk 0:04:51.2]} 10... e5 {[%clk 0:04:43.7]} 11. fxe5 {[%clk 0:04:49.6]}
11... dxe5 {[%clk 0:04:43.6]} 12. Qe3 {[%clk 0:04:47.4]} 12... Bxf3 {[%clk
0:04:42.6]} 13. Nxf3 {[%clk 0:04:46.4]} 13... exd4 {[%clk 0:04:41.7]} 14. cxd4
{[%clk 0:04:46.3]} 14... Ng4 {[%clk 0:04:29.6]} 15. Qe2 {[%clk 0:04:40.3]} 15...
Ndf6 {[%clk 0:04:23.3]} 16. e5 {[%clk 0:04:38.5]} 16... Nd5 {[%clk 0:04:19.3]}
17. h3 {[%clk 0:04:37.4]} 17... Nh6 {[%clk 0:04:15.8]} 18. Bg5 {[%clk
0:04:36.6]} 18... f6 {[%clk 0:04:13.5]} 19. exf6 {[%clk 0:04:35.5]} 19... Nxf6
{[%clk 0:04:13.4]} 20. Ne5 {[%clk 0:04:29.2]} 20... Qxd4+ {[%clk 0:04:03.7]} 21.
Kh1 {[%clk 0:04:22.8]} 21... Rxe5 {[%clk 0:04:02.2]} 22. Bxf6 {[%clk 0:04:12.7]}
22... Bxf6 {[%clk 0:04:00.6]} 23. Qf2 {[%clk 0:04:07.6]} 23... Qxf2 {[%clk
0:03:43.8]} 24. Rxf2 {[%clk 0:04:06.2]} 24... Rf8 {[%clk 0:03:43.3]} 25. Raf1
{[%clk 0:04:04.3]} 25... Nf5 {[%clk 0:03:38.3]} 26. g4 {[%clk 0:04:01.6]} 26...
Ng3+ {[%clk 0:03:35.7]} 27. Kg2 {[%clk 0:03:59.4]} 27... Nxf1 {[%clk 0:03:35.6]}
28. Rxf1 {[%clk 0:03:58.9]} 28... Re3 {[%clk 0:03:22]} 29. Bc4+ {[%clk
0:03:57.4]} 29... Kg7 {[%clk 0:03:19.4]} 30. h4 {[%clk 0:03:50.3]} 30... Bxb2
{[%clk 0:03:17.9]} 31. Rd1 {[%clk 0:03:47.4]} 31... Re7 {[%clk 0:03:05.4]} 32.
g5 {[%clk 0:03:43.9]} 32... b5 {[%clk 0:02:59.9]} 33. Bb3 {[%clk 0:03:42.3]}
33... Re2+ {[%clk 0:02:50.3]} 34. Kg3 {[%clk 0:03:39.4]} 34... Bc3 {[%clk
0:02:44.8]} 35. Rd7+ {[%clk 0:03:37.7]} 35... Kh8 {[%clk 0:02:42.8]} 36. h5
{[%clk 0:03:33.6]} 36... Be5+ {[%clk 0:02:38.2]} 37. Kh4 {[%clk 0:03:32.4]}
37... Rf4+ {[%clk 0:02:36.1]} 38. Kg3 {[%clk 0:03:31.2]} 38... Rd4+ {[%clk
0:02:33.4]} 39. Kf3 {[%clk 0:03:29.5]} 39... Rxd7 {[%clk 0:02:32.1]} 40. Kxe2
{[%clk 0:03:29]} 40... Bf4 {[%clk 0:02:26.4]} 41. Be6 {[%clk 0:03:25.5]} 41...
Rd2+ {[%clk 0:02:24.3]} 42. Kf3 {[%clk 0:03:24.1]} 42... Bxg5 {[%clk 0:02:22.9]}
43. hxg6 {[%clk 0:03:23.7]} 43... hxg6 {[%clk 0:02:21.7]} 44. Bf7 {[%clk
0:03:23.6]} 44... Kg7 {[%clk 0:02:20.6]} 45. Bb3 {[%clk 0:03:22.5]} 45... a5
{[%clk 0:02:18.5]} 46. a4 {[%clk 0:03:20.6]} 46... Rd3+ {[%clk 0:02:13.6]} 47.
Ke4 {[%clk 0:03:18.8]} 47... Rxb3 {[%clk 0:02:13.5]} 48. Ke5 {[%clk 0:03:18.2]}
48... Ra3 {[%clk 0:02:12.2]} 49. axb5 {[%clk 0:03:16.5]} 49... Ra4 {[%clk
0:02:12.1]} 50. bxc6 {[%clk 0:03:15.6]} 50... Rc4 {[%clk 0:02:10]} 51. Kd6
{[%clk 0:03:15]} 51... a4 {[%clk 0:02:08]} 52. c7 {[%clk 0:03:13.5]} 52... Bf4+
{[%clk 0:02:07.2]} 53. Kd5 {[%clk 0:03:12.3]} 53... Rxc7 {[%clk 0:02:05.5]} 54.
Kd4 {[%clk 0:03:11.4]} 54... Rc8 {[%clk 0:02:04.5]} 55. Ke4 {[%clk 0:03:11.3]}
55... Bh6 {[%clk 0:02:03.2]} 56. Kf3 {[%clk 0:03:11.2]} 56... a3 {[%clk
0:02:02.7]} 57. Kg4 {[%clk 0:03:11.1]} 57... a2 {[%clk 0:02:02.6]} 58. Kf3
{[%clk 0:03:09.8]} 58... a1=Q {[%clk 0:02:02.5]} 59. Ke4 {[%clk 0:03:09.7]}
59... Qf1 {[%clk 0:01:58]} 60. Kd4 {[%clk 0:03:08.4]} 60... g5 {[%clk
0:01:57.9]} 61. Ke5 {[%clk 0:03:07.8]} 61... g4 {[%clk 0:01:57.8]} 62. Ke4
{[%clk 0:03:07.6]} 62... g3 {[%clk 0:01:57.7]} 63. Kd4 {[%clk 0:03:07.4]} 63...
g2 {[%clk 0:01:57.6]} 64. Kd5 {[%clk 0:03:07.3]} 64... g1=Q {[%clk 0:01:57.5]}
65. Ke4 {[%clk 0:03:07]} 65... Qgf2 {[%clk 0:01:54.8]} 66. Ke5 {[%clk
0:03:06.9]} 66... Q1e1+ {[%clk 0:01:52.8]} 67. Kd5 {[%clk 0:03:05.6]} 67...
Qfd2# {[%clk 0:01:52.3]} 0-1

[Event "Live Chess"]
[Site "Chess.com"]
[Date "2024.06.02"]
[Round "-"]
[White "Plimsol"]
[Black "E2E4colchester"]
[Result "1-0"]
[WhiteElo "2390"]
[BlackElo "1006"]
[TimeControl "300"]
[EndTime "8:50:31 PDT"]
[Termination "Plimsol won by resignation"]

1. Nf3 {[%clk 0:04:57.3]} 1... c5 {[%clk 0:04:54.5]} 2. e3 {[%clk 0:04:55.6]}
2... Nc6 {[%clk 0:04:53.8]} 3. b3 {[%clk 0:04:54.6]} 3... e5 {[%clk 0:04:52.6]}
4. Bb2 {[%clk 0:04:51.5]} 4... d6 {[%clk 0:04:49.9]} 5. d3 {[%clk 0:04:41.4]}
5... Nf6 {[%clk 0:04:48.8]} 6. c4 {[%clk 0:04:40]} 6... g6 {[%clk 0:04:44.6]} 7.
Be2 {[%clk 0:04:38.5]} 7... Bg7 {[%clk 0:04:43.8]} 8. O-O {[%clk 0:04:37.7]}
8... a6 {[%clk 0:04:41.6]} 9. a3 {[%clk 0:04:37.1]} 9... b5 {[%clk 0:04:37.9]}
10. Nbd2 {[%clk 0:04:35.3]} 10... O-O {[%clk 0:04:34.8]} 11. Qc2 {[%clk
0:04:34.6]} 11... Re8 {[%clk 0:04:30.8]} 12. Rfe1 {[%clk 0:04:33]} 12... d5
{[%clk 0:04:18.4]} 13. cxd5 {[%clk 0:04:29.5]} 13... Nxd5 {[%clk 0:04:17.1]} 14.
Ne4 {[%clk 0:04:27.3]} 14... Qe7 {[%clk 0:03:39.4]} 15. Qxc5 {[%clk 0:04:23.8]}
15... Qxc5 {[%clk 0:03:26.2]} 16. Nxc5 {[%clk 0:04:22.3]} 16... e4 {[%clk
0:03:13.7]} 17. dxe4 {[%clk 0:04:14.3]} 17... Bxb2 {[%clk 0:03:07]} 18. exd5
{[%clk 0:04:13.3]} 18... Bxa1 {[%clk 0:02:59.9]} 19. Rxa1 {[%clk 0:04:09.5]}
19... Rd8 {[%clk 0:02:51]} 20. dxc6 {[%clk 0:04:06.1]} 20... Rd5 {[%clk
0:02:43.7]} 21. Rc1 {[%clk 0:04:03]} 21... Bf5 {[%clk 0:02:37.4]} 22. e4 {[%clk
0:03:56.4]} 22... Bxe4 {[%clk 0:02:33]} 23. Nxe4 {[%clk 0:03:54.2]} 23... Re5
{[%clk 0:02:32]} 24. Nxe5 {[%clk 0:03:52.6]} 1-0

[Event "Live Chess"]
[Site "Chess.com"]
[Date "2024.06.02"]
[Round "-"]
[White "Inglaterra"]
[Black "beltmanjb"]
[Result "1-0"]
[WhiteElo "2051"]
[BlackElo "1731"]
[TimeControl "300"]
[EndTime "8:50:41 PDT"]
[Termination "Inglaterra won by resignation"]

1. e4 {[%clk 0:04:58.6]} 1... c5 {[%clk 0:04:59.1]} 2. Nf3 {[%clk 0:04:58.1]}
2... Nc6 {[%clk 0:04:58.5]} 3. Bb5 {[%clk 0:04:57.1]} 3... Nf6 {[%clk
0:04:55.7]} 4. d3 {[%clk 0:04:54.3]} 4... g6 {[%clk 0:04:53.6]} 5. O-O {[%clk
0:04:53.3]} 5... Bg7 {[%clk 0:04:52.7]} 6. Re1 {[%clk 0:04:52.3]} 6... O-O
{[%clk 0:04:48.7]} 7. Bxc6 {[%clk 0:04:50.7]} 7... dxc6 {[%clk 0:04:47]} 8. Be3
{[%clk 0:04:49.6]} 8... b6 {[%clk 0:04:45.1]} 9. h3 {[%clk 0:04:48.9]} 9... e5
{[%clk 0:04:34.7]} 10. Nbd2 {[%clk 0:04:46.4]} 10... Ne8 {[%clk 0:04:30.8]} 11.
a4 {[%clk 0:04:45.9]} 11... a5 {[%clk 0:04:28.8]} 12. Nc4 {[%clk 0:04:44.5]}
12... Ba6 {[%clk 0:04:10.3]} 13. Ncxe5 {[%clk 0:04:27]} 13... Nc7 {[%clk
0:03:38.4]} 14. Qd2 {[%clk 0:04:14.4]} 14... Ne6 {[%clk 0:03:35.7]} 15. Ng4
{[%clk 0:03:56.8]} 15... Nd4 {[%clk 0:03:17.5]} 16. Nxd4 {[%clk 0:03:53.4]}
16... cxd4 {[%clk 0:03:04.8]} 17. Bh6 {[%clk 0:03:51.8]} 17... Qh4 {[%clk
0:02:46.4]} 18. Bg5 {[%clk 0:03:36.8]} 18... Qh5 {[%clk 0:02:43.8]} 19. e5
{[%clk 0:03:30.9]} 19... f5 {[%clk 0:02:22.6]} 20. exf6 {[%clk 0:03:23.4]} 20...
Bh8 {[%clk 0:02:04]} 21. Re7 {[%clk 0:03:20.1]} 1-0